[Event "The Kvibergspelen 2024"]
[Site "Kviberg Park Hotel & Conference, Krutvagen 2, Gothenburg, Sweden"]
[Date "2024.09.07"]
[Round "6.2"]
[White "Ernst, Thomas"]
[Black "Lindberg, Bengt"]
[Result "0-1"]
[TimeControl "15 minutes + 5 seconds per move from move one (Round 1 - 4) / 90 minutes + 30 seconds per move from move one (Round 5 - 8)"]
[WhiteTitle "GM"]
[BlackTitle "IM"]
[WhiteFideId "1700065"]
[BlackFideId "1700359"]
[WhiteElo "2261"]
[BlackElo "2337"]

1. d4 {[%clk 01:30:56]} {[%emt 00:00:03]} Nf6 {[%clk 01:30:50]} {[%emt
00:00:10]} 2. c4 {[%clk 01:31:22]} {[%emt 00:00:05]} e6 {[%clk 01:31:07]}
{[%emt 00:00:12]} 3. Nc3 {[%clk 01:31:45]} {[%emt 00:00:07]} Bb4 {[%clk
01:31:24]} {[%emt 00:00:13]} 4. e3 {[%clk 01:31:59]} {[%emt 00:00:15]} b6
{[%clk 01:31:14]} {[%emt 00:00:41]} 5. Nge2 {[%clk 01:32:01]} {[%emt 00:00:28]}
Ba6 {[%clk 01:31:17]} {[%emt 00:00:27]} 6. Ng3 {[%clk 01:31:59]} {[%emt
00:00:32]} Bxc3+ {[%clk 01:31:05]} {[%emt 00:00:42]} 7. bxc3 {[%clk 01:32:24]}
{[%emt 00:00:06]} d5 {[%clk 01:31:15]} {[%emt 00:00:19]} 8. Ba3 {[%clk
01:32:24]} {[%emt 00:00:30]} Bxc4 {[%clk 01:31:11]} {[%emt 00:00:34]} 9. Bxc4
{[%clk 01:32:46]} {[%emt 00:00:08]} dxc4 {[%clk 01:31:34]} {[%emt 00:00:07]} 10.
Qa4+ {[%clk 01:32:43]} {[%emt 00:00:33]} Qd7 {[%clk 01:31:45]} {[%emt
00:00:19]} 11. Qxc4 {[%clk 01:32:43]} {[%emt 00:00:31]} Qc6 {[%clk 01:31:48]}
{[%emt 00:00:26]} 12. Qxc6+ {[%clk 01:32:15]} {[%emt 00:00:58]} Nxc6 {[%clk
01:32:10]} {[%emt 00:00:08]} 13. c4 {[%clk 01:31:39]} {[%emt 00:01:06]} a6
{[%clk 01:32:27]} {[%emt 00:00:14]} 14. Ke2 {[%clk 01:26:45]} {[%emt 00:05:23]}
b5 {[%clk 01:20:19]} {[%emt 00:12:38]} 15. Rac1 {[%clk 01:20:08]} {[%emt
00:07:07]} Na5 {[%clk 01:14:19]} {[%emt 00:06:31]} 16. c5 {[%clk 01:08:58]}
{[%emt 00:11:40]} Nc4 {[%clk 01:05:56]} {[%emt 00:08:53]} 17. Bb4 {[%clk
01:09:23]} {[%emt 00:00:05]} Nd5 {[%clk 01:01:07]} {[%emt 00:05:18]} 18. Bd2
{[%clk 01:09:22]} {[%emt 00:00:29]} f5 {[%clk 00:57:51]} {[%emt 00:03:48]} 19.
e4 {[%clk 01:07:22]} {[%emt 00:02:30]} fxe4 {[%clk 00:58:08]} {[%emt 00:00:14]}
20. Nxe4 {[%clk 01:07:49]} {[%emt 00:00:03]} O-O {[%clk 00:54:48]} {[%emt
00:03:50]} 21. Be3 {[%clk 01:07:34]} {[%emt 00:00:44]} Rae8 {[%clk 00:52:41]}
{[%emt 00:02:38]} 22. Nc3 {[%clk 01:03:53]} {[%emt 00:04:11]} c6 {[%clk
00:51:04]} {[%emt 00:02:06]} 23. Nxd5 {[%clk 01:02:23]} {[%emt 00:02:01]} exd5
{[%clk 00:46:29]} {[%emt 00:05:04]} 24. Rc2 {[%clk 00:59:18]} {[%emt 00:03:35]}
a5 {[%clk 00:42:15]} {[%emt 00:04:44]} 25. Kd3 {[%clk 00:58:14]} {[%emt
00:01:33]} Na3 {[%clk 00:40:46]} {[%emt 00:01:58]} 26. Rb2 {[%clk 00:52:45]}
{[%emt 00:06:00]} b4 {[%clk 00:40:58]} {[%emt 00:00:20]} 27. Rc1 {[%clk
00:47:58]} {[%emt 00:05:16]} Rb8 {[%clk 00:40:59]} {[%emt 00:00:29]} 28. Rb3
{[%clk 00:46:12]} {[%emt 00:02:14]} Rb5 {[%clk 00:40:09]} {[%emt 00:01:22]} 29.
Rxa3 {[%clk 00:43:31]} {[%emt 00:03:12]} bxa3 {[%clk 00:40:35]} {[%emt
00:00:03]} 30. Rc3 {[%clk 00:43:51]} {[%emt 00:00:08]} Rb4 {[%clk 00:34:47]}
{[%emt 00:06:19]} 31. Rxa3 {[%clk 00:44:08]} {[%emt 00:00:13]} a4 {[%clk
00:35:15]} {[%emt 00:00:03]} 32. Rc3 {[%clk 00:41:46]} {[%emt 00:02:51]} Rb2
{[%clk 00:34:31]} {[%emt 00:01:15]} 33. Rc2 {[%clk 00:42:04]} {[%emt 00:00:12]}
Rfb8 {[%clk 00:33:49]} {[%emt 00:01:12]} 34. Bc1 {[%clk 00:41:23]} {[%emt
00:01:10]} Rxc2 {[%clk 00:32:39]} {[%emt 00:01:41]} 35. Kxc2 {[%clk 00:41:46]}
{[%emt 00:00:07]} Rb4 {[%clk 00:32:47]} {[%emt 00:00:21]} 36. Bb2 {[%clk
00:40:22]} {[%emt 00:01:55]} a3 {[%clk 00:25:37]} {[%emt 00:07:41]} 37. Bc3
{[%clk 00:40:29]} {[%emt 00:00:21]} Rb5 {[%clk 00:25:59]} {[%emt 00:00:10]} 38.
f3 {[%clk 00:33:59]} {[%emt 00:06:59]} Kf7 {[%clk 00:24:45]} {[%emt 00:01:44]}
39. g4 {[%clk 00:33:30]} {[%emt 00:00:57]} Kf6 {[%clk 00:22:29]} {[%emt
00:02:48]} 40. h4 {[%clk 00:33:38]} {[%emt 00:00:22]} h5 {[%clk 00:22:50]}
{[%emt 00:00:08]} 41. Kc1 {[%clk 00:26:46]} {[%emt 00:07:23]} hxg4 {[%clk
00:21:58]} {[%emt 00:01:22]} 42. fxg4 {[%clk 00:27:11]} {[%emt 00:00:05]} Rb8
{[%clk 00:21:59]} {[%emt 00:00:26]} 43. Kc2 {[%clk 00:27:00]} {[%emt 00:00:44]}
Ke6 {[%clk 00:21:21]} {[%emt 00:01:09]} 44. h5 {[%clk 00:25:40]} {[%emt
00:01:51]} Rf8 {[%clk 00:20:33]} {[%emt 00:01:16]} 45. g5 {[%clk 00:25:20]}
{[%emt 00:00:50]} Rb8 {[%clk 00:18:29]} {[%emt 00:02:34]} 46. h6 {[%clk
00:24:03]} {[%emt 00:01:47]} gxh6 {[%clk 00:18:55]} {[%emt 00:00:05]} 47. gxh6
{[%clk 00:24:28]} {[%emt 00:00:05]} Kf6 {[%clk 00:19:19]} 0-1

[Event "The Kvibergspelen 2024"]
[Site "Kviberg Park Hotel & Conference, Krutvagen 2, Gothenburg, Sweden"]
[Date "2024.09.07"]
[Round "6.3"]
[White "Eriksson, Kristian"]
[Black "Arman, Deniz"]
[Result "0-1"]
[TimeControl "15 minutes + 5 seconds per move from move one (Round 1 - 4) / 90 minutes + 30 seconds per move from move one (Round 5 - 8)"]
[BlackTitle "FM"]
[WhiteFideId "1705172"]
[BlackFideId "6302106"]
[WhiteElo "2051"]
[BlackElo "2348"]

1. e4 {[%clk 01:30:55]} {[%emt 00:00:05]} d6 {[%clk 01:27:23]} {[%emt
00:03:35]} 2. d4 {[%clk 01:31:14]} {[%emt 00:00:15]} Nf6 {[%clk 01:27:46]}
{[%emt 00:00:06]} 3. Nc3 {[%clk 01:31:36]} {[%emt 00:00:08]} e5 {[%clk
01:28:09]} {[%emt 00:00:07]} 4. dxe5 {[%clk 01:31:48]} {[%emt 00:00:18]} dxe5
{[%clk 01:28:34]} {[%emt 00:00:04]} 5. Qxd8+ {[%clk 01:32:04]} {[%emt
00:00:14]} Kxd8 {[%clk 01:29:01]} {[%emt 00:00:04]} 6. Nf3 {[%clk 01:32:12]}
{[%emt 00:00:21]} Bd6 {[%clk 01:27:32]} {[%emt 00:01:59]} 7. Bg5 {[%clk
01:32:17]} {[%emt 00:00:24]} Be6 {[%clk 01:23:05]} {[%emt 00:04:59]} 8. O-O-O
{[%clk 01:31:23]} {[%emt 00:01:23]} Nbd7 {[%clk 01:22:47]} {[%emt 00:00:48]} 9.
Bb5 {[%clk 01:26:44]} {[%emt 00:05:09]} Kc8 {[%clk 01:20:19]} {[%emt 00:02:58]}
10. a3 {[%clk 01:22:58]} {[%emt 00:04:16]} a6 {[%clk 01:17:50]} {[%emt
00:02:59]} 11. Be2 {[%clk 01:19:27]} {[%emt 00:04:01]} b5 {[%clk 01:04:16]}
{[%emt 00:14:05]} 12. h3 {[%clk 01:15:40]} {[%emt 00:04:16]} Ne8 {[%clk
00:55:09]} {[%emt 00:09:38]} 13. Kb1 {[%clk 01:10:47]} {[%emt 00:05:22]} Bc5
{[%clk 00:54:49]} {[%emt 00:00:50]} 14. Rhf1 {[%clk 01:06:22]} {[%emt
00:04:56]} f6 {[%clk 00:55:06]} {[%emt 00:00:13]} 15. Bc1 {[%clk 01:05:38]}
{[%emt 00:01:13]} c6 {[%clk 00:52:09]} {[%emt 00:03:27]} 16. Nd2 {[%clk
00:58:54]} {[%emt 00:07:14]} h5 {[%clk 00:49:19]} {[%emt 00:03:21]} 17. Nb3
{[%clk 00:56:11]} {[%emt 00:03:13]} Bb6 {[%clk 00:47:24]} {[%emt 00:02:24]} 18.
f4 {[%clk 00:53:23]} {[%emt 00:03:18]} Kc7 {[%clk 00:46:42]} {[%emt 00:01:13]}
19. fxe5 {[%clk 00:50:59]} {[%emt 00:02:53]} fxe5 {[%clk 00:45:25]} {[%emt
00:01:48]} 20. g4 {[%clk 00:44:42]} {[%emt 00:06:46]} h4 {[%clk 00:45:50]}
{[%emt 00:00:05]} 21. Rf3 {[%clk 00:40:34]} {[%emt 00:04:38]} a5 {[%clk
00:38:21]} {[%emt 00:08:00]} 22. Be3 {[%clk 00:38:05]} {[%emt 00:02:58]} Bxe3
{[%clk 00:36:16]} {[%emt 00:02:36]} 23. Rxe3 {[%clk 00:38:11]} {[%emt
00:00:23]} Rf8 {[%clk 00:32:16]} {[%emt 00:04:29]} 24. Rf3 {[%clk 00:34:16]}
{[%emt 00:04:24]} Rxf3 {[%clk 00:32:01]} {[%emt 00:00:47]} 25. Bxf3 {[%clk
00:34:33]} {[%emt 00:00:13]} Bxb3 {[%clk 00:31:59]} {[%emt 00:00:32]} 26. cxb3
{[%clk 00:34:48]} {[%emt 00:00:14]} Nc5 {[%clk 00:31:56]} {[%emt 00:00:34]} 27.
Kc2 {[%clk 00:28:52]} {[%emt 00:06:25]} Nd6 {[%clk 00:31:33]} {[%emt 00:00:54]}
28. b4 {[%clk 00:25:26]} {[%emt 00:03:56]} axb4 {[%clk 00:31:31]} {[%emt
00:00:33]} 29. axb4 {[%clk 00:25:53]} {[%emt 00:00:03]} Ne6 {[%clk 00:30:44]}
{[%emt 00:01:16]} 30. Be2 {[%clk 00:20:46]} {[%emt 00:05:36]} Ng5 {[%clk
00:27:46]} {[%emt 00:03:30]} 31. Bd3 {[%clk 00:17:28]} {[%emt 00:03:47]} Rf8
{[%clk 00:26:27]} {[%emt 00:01:50]} 32. Rf1 {[%clk 00:16:28]} {[%emt 00:01:29]}
Rxf1 {[%clk 00:25:15]} {[%emt 00:01:43]} 33. Bxf1 {[%clk 00:16:49]} {[%emt
00:00:09]} Ndxe4 {[%clk 00:25:41]} {[%emt 00:00:03]} 34. Nxe4 {[%clk 00:13:39]}
{[%emt 00:03:41]} Nxe4 {[%clk 00:26:07]} {[%emt 00:00:04]} 35. Bg2 {[%clk
00:13:14]} {[%emt 00:00:54]} Ng5 {[%clk 00:26:23]} {[%emt 00:00:14]} 36. Kd3
{[%clk 00:12:58]} {[%emt 00:00:47]} Kd6 {[%clk 00:26:27]} {[%emt 00:00:26]} 37.
Ke3 {[%clk 00:11:35]} {[%emt 00:01:53]} g6 {[%clk 00:25:23]} {[%emt 00:01:33]}
38. Kd3 {[%clk 00:08:29]} {[%emt 00:03:35]} Ne6 {[%clk 00:25:24]} {[%emt
00:00:30]} 39. Ke4 {[%clk 00:08:09]} {[%emt 00:00:50]} Nf4 {[%clk 00:25:19]}
{[%emt 00:00:35]} 40. Bf1 {[%clk 00:07:09]} {[%emt 00:01:30]} Ke6 {[%clk
00:18:31]} {[%emt 00:07:18]} 41. Kf3 {[%clk 00:05:56]} {[%emt 00:01:43]} g5
{[%clk 00:18:03]} {[%emt 00:00:58]} 42. Ke4 {[%clk 00:04:14]} {[%emt 00:02:13]}
Kf6 {[%clk 00:18:26]} {[%emt 00:00:08]} 43. Kf3 {[%clk 00:03:21]} {[%emt
00:01:23]} Ke7 {[%clk 00:18:49]} {[%emt 00:00:06]} 44. Ke4 {[%clk 00:03:13]}
{[%emt 00:00:38]} Ke6 {[%clk 00:19:14]} {[%emt 00:00:05]} 45. Kf3 {[%clk
00:03:25]} {[%emt 00:00:16]} Kd5 {[%clk 00:19:38]} {[%emt 00:00:08]} 46. Ke3
{[%clk 00:03:31]} {[%emt 00:00:24]} e4 {[%clk 00:20:01]} 0-1

[Event "The Kvibergspelen 2024"]
[Site "Kviberg Park Hotel & Conference, Krutvagen 2, Gothenburg, Sweden"]
[Date "2024.09.07"]
[Round "6.4"]
[White "Grahn, Vidar"]
[Black "Karlsson, Stefan"]
[Result "1-0"]
[TimeControl "15 minutes + 5 seconds per move from move one (Round 1 - 4) / 90 minutes + 30 seconds per move from move one (Round 5 - 8)"]
[WhiteTitle "FM"]
[WhiteFideId "1744780"]
[BlackFideId "1771183"]
[WhiteElo "2219"]
[BlackElo "2035"]

1. d4 {[%clk 01:30:24]} {[%emt 00:00:36]} Nf6 {[%clk 01:30:32]} {[%emt
00:00:28]} 2. c4 {[%clk 01:30:49]} {[%emt 00:00:05]} g6 {[%clk 01:30:58]}
{[%emt 00:00:05]} 3. Nc3 {[%clk 01:31:05]} {[%emt 00:00:14]} Bg7 {[%clk
01:31:21]} {[%emt 00:00:06]} 4. e4 {[%clk 01:31:32]} {[%emt 00:00:03]} d6
{[%clk 01:31:46]} {[%emt 00:00:06]} 5. Be2 {[%clk 01:31:58]} {[%emt 00:00:03]}
O-O {[%clk 01:32:05]} {[%emt 00:00:11]} 6. Be3 {[%clk 01:32:25]} {[%emt
00:00:03]} a5 {[%clk 01:31:18]} {[%emt 00:01:17]} 7. h4 {[%clk 01:30:16]}
{[%emt 00:02:38]} h5 {[%clk 01:24:12]} {[%emt 00:07:37]} 8. f3 {[%clk
01:29:17]} {[%emt 00:01:29]} e5 {[%clk 01:19:53]} {[%emt 00:04:48]} 9. d5
{[%clk 01:29:32]} {[%emt 00:00:16]} c6 {[%clk 01:18:32]} {[%emt 00:01:50]} 10.
Qd2 {[%clk 01:24:26]} {[%emt 00:05:37]} cxd5 {[%clk 01:10:26]} {[%emt
00:08:37]} 11. cxd5 {[%clk 01:24:09]} {[%emt 00:00:46]} a4 {[%clk 01:09:16]}
{[%emt 00:01:39]} 12. Nh3 {[%clk 01:12:11]} {[%emt 00:12:29]} Bd7 {[%clk
01:07:43]} {[%emt 00:02:03]} 13. Nf2 {[%clk 01:05:58]} {[%emt 00:06:44]} Qa5
{[%clk 01:06:05]} {[%emt 00:02:07]} 14. g4 {[%clk 01:03:48]} {[%emt 00:02:40]}
b5 {[%clk 01:01:49]} {[%emt 00:04:45]} 15. Bg5 {[%clk 01:01:51]} {[%emt
00:02:27]} b4 {[%clk 00:55:17]} {[%emt 00:07:02]} 16. Ncd1 {[%clk 01:02:02]}
{[%emt 00:00:20]} hxg4 {[%clk 00:54:02]} {[%emt 00:01:44]} 17. fxg4 {[%clk
01:00:25]} {[%emt 00:02:08]} Nh7 {[%clk 00:51:29]} {[%emt 00:03:02]} 18. Be7
{[%clk 00:58:38]} {[%emt 00:02:16]} Re8 {[%clk 00:50:01]} {[%emt 00:01:59]} 19.
Bxd6 {[%clk 00:58:51]} {[%emt 00:00:18]} Bf8 {[%clk 00:50:16]} {[%emt
00:00:15]} 20. Bxf8 {[%clk 00:58:57]} {[%emt 00:00:24]} Nxf8 {[%clk 00:50:27]}
{[%emt 00:00:19]} 21. h5 {[%clk 00:56:52]} {[%emt 00:02:35]} Na6 {[%clk
00:50:34]} {[%emt 00:00:23]} 22. h6 {[%clk 00:54:55]} {[%emt 00:02:27]} Kh7
{[%clk 00:50:24]} {[%emt 00:00:40]} 23. Ne3 {[%clk 00:54:03]} {[%emt 00:01:22]}
Bb5 {[%clk 00:49:05]} {[%emt 00:01:49]} 24. Bxb5 {[%clk 00:47:29]} {[%emt
00:07:03]} Qxb5 {[%clk 00:49:30]} {[%emt 00:00:06]} 25. Qd3 {[%clk 00:45:54]}
{[%emt 00:02:05]} Qd7 {[%clk 00:49:28]} {[%emt 00:00:32]} 26. Nc4 {[%clk
00:43:44]} {[%emt 00:02:39]} Nc5 {[%clk 00:49:41]} {[%emt 00:00:17]} 27. Qf3
{[%clk 00:43:35]} {[%emt 00:00:37]} Ra6 {[%clk 00:49:14]} {[%emt 00:00:59]} 28.
g5 {[%clk 00:41:39]} {[%emt 00:02:26]} Qe7 {[%clk 00:47:23]} {[%emt 00:02:21]}
29. Ng4 {[%clk 00:41:44]} {[%emt 00:00:25]} Nfd7 {[%clk 00:47:48]} {[%emt
00:00:05]} 30. O-O {[%clk 00:39:48]} {[%emt 00:02:26]} Rf8 {[%clk 00:47:59]}
{[%emt 00:00:18]} 31. Nf6+ {[%clk 00:37:34]} {[%emt 00:02:45]} Kh8 {[%clk
00:47:56]} {[%emt 00:00:33]} 32. Ne3 {[%clk 00:33:39]} {[%emt 00:04:25]} Nd3
{[%clk 00:47:15]} {[%emt 00:01:11]} 33. Nxd7 {[%clk 00:28:38]} {[%emt
00:05:31]} Qxd7 {[%clk 00:47:30]} {[%emt 00:00:16]} 34. Qe2 {[%clk 00:26:48]}
{[%emt 00:02:19]} Nc5 {[%clk 00:47:38]} {[%emt 00:00:22]} 35. Ng4 {[%clk
00:22:58]} {[%emt 00:04:20]} Qa7 {[%clk 00:46:27]} {[%emt 00:01:40]} 36. Rf2
{[%clk 00:22:28]} {[%emt 00:01:00]} Nd7 {[%clk 00:46:52]} {[%emt 00:00:06]} 37.
Raf1 {[%clk 00:21:38]} {[%emt 00:01:20]} Rd6 {[%clk 00:45:31]} {[%emt
00:01:51]} 38. Kg2 {[%clk 00:20:27]} {[%emt 00:01:41]} Nc5 {[%clk 00:44:22]}
{[%emt 00:01:38]} 39. Nxe5 {[%clk 00:18:48]} {[%emt 00:02:10]} Qe7 {[%clk
00:44:28]} {[%emt 00:00:24]} 40. Nxf7+ {[%clk 00:18:40]} {[%emt 00:00:37]} Rxf7
{[%clk 00:44:45]} {[%emt 00:00:14]} 41. Rxf7 {[%clk 00:19:01]} {[%emt
00:00:09]} Qxg5+ {[%clk 00:45:01]} {[%emt 00:00:13]} 42. Kh1 {[%clk 00:19:22]}
{[%emt 00:00:09]} Qh4+ {[%clk 00:45:09]} {[%emt 00:00:23]} 43. Kg1 {[%clk
00:18:46]} {[%emt 00:01:05]} 1-0

[Event "The Kvibergspelen 2024"]
[Site "Kviberg Park Hotel & Conference, Krutvagen 2, Gothenburg, Sweden"]
[Date "2024.09.07"]
[Round "6.5"]
[White "Nord, Alexander"]
[Black "Kingsley, Elias"]
[Result "1/2-1/2"]
[TimeControl "15 minutes + 5 seconds per move from move one (Round 1 - 4) / 90 minutes + 30 seconds per move from move one (Round 5 - 8)"]
[WhiteTitle "CM"]
[WhiteFideId "1738135"]
[BlackFideId "1775006"]
[WhiteElo "2209"]
[BlackElo "2047"]

1. d4 {[%clk 01:30:56]} {[%emt 00:00:03]} Nf6 {[%clk 01:30:54]} {[%emt
00:00:07]} 2. c4 {[%clk 01:31:20]} {[%emt 00:00:07]} e6 {[%clk 01:31:17]}
{[%emt 00:00:06]} 3. Nc3 {[%clk 01:31:46]} {[%emt 00:00:04]} Bb4 {[%clk
01:30:43]} {[%emt 00:01:05]} 4. e3 {[%clk 01:31:58]} {[%emt 00:00:17]} O-O
{[%clk 01:30:53]} {[%emt 00:00:20]} 5. Bd2 {[%emt 00:01:27]} d5 {[%clk
01:30:19]} {[%emt 00:00:01]} 6. Nf3 {[%clk 01:31:51]} {[%emt 00:00:42]} b6
{[%clk 01:28:41]} {[%emt 00:02:09]} 7. cxd5 {[%clk 01:32:00]} {[%emt 00:00:20]}
exd5 {[%clk 01:29:01]} {[%emt 00:00:11]} 8. Rc1 {[%clk 01:32:10]} {[%emt
00:00:20]} Re8 {[%clk 01:19:00]} {[%emt 00:10:31]} 9. Bd3 {[%clk 01:23:10]}
{[%emt 00:09:29]} Bb7 {[%clk 01:13:49]} {[%emt 00:05:42]} 10. O-O {[%clk
01:18:14]} {[%emt 00:05:27]} c5 {[%clk 01:01:02]} {[%emt 00:13:16]} 11. dxc5
{[%clk 01:02:25]} {[%emt 00:16:18]} bxc5 {[%clk 01:00:05]} {[%emt 00:01:28]} 12.
a3 {[%clk 00:59:43]} {[%emt 00:03:12]} Bxc3 {[%clk 00:54:29]} {[%emt 00:06:06]}
13. Bxc3 {[%clk 00:59:31]} {[%emt 00:00:41]} Nbd7 {[%clk 00:53:31]} {[%emt
00:01:28]} 14. b4 {[%clk 00:37:12]} {[%emt 00:22:50]} c4 {[%clk 00:47:10]}
{[%emt 00:06:51]} 15. Bc2 {[%clk 00:37:28]} {[%emt 00:00:13]} Ne4 {[%clk
00:46:33]} {[%emt 00:01:07]} 16. Bxe4 {[%clk 00:37:53]} {[%emt 00:00:06]} Rxe4
{[%clk 00:38:24]} {[%emt 00:08:40]} 17. Nd4 {[%clk 00:37:07]} {[%emt 00:01:15]}
Ne5 {[%clk 00:32:50]} {[%emt 00:06:03]} 18. Nf5 {[%clk 00:32:02]} {[%emt
00:05:33]} Nd3 {[%clk 00:31:57]} {[%emt 00:01:26]} 19. Rc2 {[%clk 00:31:58]}
{[%emt 00:00:34]} f6 {[%clk 00:25:16]} {[%emt 00:07:10]} 20. Ng3 {[%clk
00:31:05]} {[%emt 00:01:23]} Re8 {[%clk 00:24:03]} {[%emt 00:01:43]} 21. Qg4
{[%clk 00:29:27]} {[%emt 00:02:07]} Kh8 {[%clk 00:19:55]} {[%emt 00:04:39]} 22.
Nh5 {[%clk 00:24:34]} {[%emt 00:05:23]} 1/2-1/2

[Event "The Kvibergspelen 2024"]
[Site "Kviberg Park Hotel & Conference, Krutvagen 2, Gothenburg, Sweden"]
[Date "2024.09.07"]
[Round "6.6"]
[White "Ostensson, Julia"]
[Black "Muntean, Victor"]
[Result "0-1"]
[TimeControl "15 minutes + 5 seconds per move from move one (Round 1 - 4) / 90 minutes + 30 seconds per move from move one (Round 5 - 8)"]
[WhiteFideId "1747703"]
[BlackFideId "1054414"]
[WhiteElo "2016"]
[BlackElo "2158"]

1. e4 {[%clk 01:30:58]} {[%emt 00:00:01]} e5 {[%clk 01:30:55]} {[%emt
00:00:05]} 2. Nf3 {[%clk 01:31:25]} {[%emt 00:00:04]} Nc6 {[%clk 01:31:21]}
{[%emt 00:00:04]} 3. Nc3 {[%clk 01:31:52]} {[%emt 00:00:03]} Nf6 {[%clk
01:31:47]} {[%emt 00:00:04]} 4. d4 {[%clk 01:32:18]} {[%emt 00:00:04]} Bb4
{[%clk 01:32:10]} {[%emt 00:00:07]} 5. Nxe5 {[%clk 01:29:41]} {[%emt 00:03:06]}
Qe7 {[%clk 01:32:32]} {[%emt 00:00:09]} 6. Nxc6 {[%clk 00:50:30]} {[%emt
00:39:41]} Qxe4+ {[%clk 01:32:49]} {[%emt 00:00:13]} 7. Be2 {[%clk 00:47:06]}
{[%emt 00:03:53]} dxc6 {[%clk 01:26:12]} {[%emt 00:07:07]} 8. O-O {[%clk
00:47:22]} {[%emt 00:00:15]} Qg6 {[%clk 01:26:15]} {[%emt 00:00:27]} 9. Bd3
{[%clk 00:46:53]} {[%emt 00:00:58]} Qh5 {[%clk 01:23:06]} {[%emt 00:03:39]} 10.
Qxh5 {[%clk 00:42:48]} {[%emt 00:04:36]} Nxh5 {[%clk 01:23:08]} {[%emt
00:00:27]} 11. Ne4 {[%clk 00:39:13]} {[%emt 00:04:05]} f5 {[%clk 01:17:13]}
{[%emt 00:06:26]} 12. Ng5 {[%clk 00:36:11]} {[%emt 00:03:30]} h6 {[%clk
01:13:49]} {[%emt 00:03:55]} 13. Nf3 {[%clk 00:35:57]} {[%emt 00:00:44]} Be6
{[%clk 01:12:54]} {[%emt 00:01:25]} 14. a3 {[%clk 00:30:39]} {[%emt 00:05:49]}
Bd6 {[%clk 01:12:04]} {[%emt 00:01:19]} 15. Re1 {[%clk 00:30:44]} {[%emt
00:00:25]} Kf7 {[%clk 01:11:51]} {[%emt 00:00:43]} 16. Ne5+ {[%clk 00:21:50]}
{[%emt 00:09:24]} Kf6 {[%clk 01:11:56]} {[%emt 00:00:26]} 17. f3 {[%clk
00:10:27]} {[%emt 00:11:53]} g5 {[%clk 01:05:44]} {[%emt 00:06:41]} 18. g3
{[%clk 00:08:20]} {[%emt 00:02:38]} Rhg8 {[%clk 01:03:31]} {[%emt 00:02:43]} 19.
Bd2 {[%clk 00:06:58]} {[%emt 00:01:51]} Rad8 {[%clk 01:02:33]} {[%emt
00:01:27]} 20. Re2 {[%clk 00:05:58]} {[%emt 00:01:31]} c5 {[%clk 00:59:45]}
{[%emt 00:03:18]} 21. Rae1 {[%clk 00:03:59]} {[%emt 00:02:29]} Rge8 {[%clk
00:57:10]} {[%emt 00:03:05]} 22. Bc3 {[%clk 00:03:50]} {[%emt 00:00:40]} Bxe5
{[%clk 00:57:17]} {[%emt 00:00:22]} 23. Rxe5 {[%clk 00:00:39]} {[%emt
00:03:40]} cxd4 {[%clk 00:56:49]} {[%emt 00:00:59]} 24. Bd2 {[%clk 00:00:37]}
{[%emt 00:00:32]} Ng7 {[%clk 00:56:44]} {[%emt 00:00:35]} 25. c3 {[%clk
00:00:37]} {[%emt 00:00:31]} Kf7 {[%clk 00:56:17]} {[%emt 00:00:56]} 26. cxd4
{[%clk 00:00:33]} {[%emt 00:00:34]} Rxd4 {[%clk 00:56:27]} {[%emt 00:00:20]} 27.
Bb5 {[%clk 00:00:45]} {[%emt 00:00:19]} Rxd2 {[%clk 00:50:57]} {[%emt
00:05:59]} 28. Bxe8+ {[%clk 00:01:09]} {[%emt 00:00:06]} Kxe8 {[%clk 00:51:21]}
{[%emt 00:00:06]} 29. b4 {[%clk 00:00:34]} {[%emt 00:01:06]} Kd7 {[%clk
00:51:12]} {[%emt 00:00:38]} 30. R1e3 {[%clk 00:00:37]} {[%emt 00:00:27]} Rd5
{[%clk 00:51:13]} {[%emt 00:00:29]} 31. Kf2 {[%clk 00:00:41]} {[%emt 00:00:27]}
Rxe5 {[%clk 00:51:25]} {[%emt 00:00:18]} 32. Rxe5 {[%clk 00:01:05]} {[%emt
00:00:05]} Kd6 {[%clk 00:51:39]} {[%emt 00:00:16]} 33. Ra5 {[%clk 00:00:41]}
{[%emt 00:00:54]} a6 {[%clk 00:52:03]} {[%emt 00:00:06]} 34. b5 {[%clk
00:00:34]} {[%emt 00:00:37]} axb5 {[%clk 00:52:04]} {[%emt 00:00:29]} 35. Rxb5
{[%clk 00:00:59]} {[%emt 00:00:04]} Bd5 {[%clk 00:52:24]} {[%emt 00:00:11]} 36.
Ke3 {[%clk 00:01:17]} {[%emt 00:00:13]} Ne6 {[%clk 00:52:27]} {[%emt 00:00:26]}
37. f4 {[%clk 00:01:15]} {[%emt 00:00:32]} gxf4+ {[%clk 00:52:25]} {[%emt
00:00:32]} 38. gxf4 {[%clk 00:01:40]} {[%emt 00:00:05]} c5 {[%clk 00:52:39]}
{[%emt 00:00:16]} 39. Rb1 {[%clk 00:01:45]} {[%emt 00:00:25]} Nd4 {[%clk
00:51:00]} {[%emt 00:02:08]} 40. a4 {[%clk 00:01:16]} {[%emt 00:01:00]} Be4
{[%clk 00:50:26]} {[%emt 00:01:04]} 41. Rg1 {[%clk 00:01:13]} {[%emt 00:00:33]}
Nb3 {[%clk 00:49:45]} {[%emt 00:01:11]} 42. Rg6+ {[%clk 00:01:19]} {[%emt
00:00:25]} Kd5 {[%clk 00:50:07]} {[%emt 00:00:07]} 43. Rxh6 {[%clk 00:01:40]}
{[%emt 00:00:09]} c4 {[%clk 00:50:11]} {[%emt 00:00:26]} 44. Rb6 {[%clk
00:01:38]} {[%emt 00:00:33]} Nc5 {[%clk 00:49:18]} {[%emt 00:01:22]} 45. h4
{[%clk 00:01:09]} {[%emt 00:00:59]} c3 {[%emt 00:03:05]} 46. Rb4 {[%clk
00:00:33]} c2 {[%clk 00:47:47]} {[%emt 00:00:32]} 47. Rd4+ {[%clk 00:00:58]}
{[%emt 00:00:05]} Ke6 {[%clk 00:48:08]} {[%emt 00:00:08]} 48. Rc4 {[%clk
00:01:03]} {[%emt 00:00:26]} Nb3 {[%clk 00:48:29]} {[%emt 00:00:10]} 0-1